fUST/lending_fUST_20250623
["ID","MTS","AMOUNT","RATE_DAILY","PERIOD"]
[367059221,1750639891324,-753.67,0.00023561,2]
[367059222,1750639891334,-1765.4,0.00023561,2]
[367059223,1750639891346,-608.17,0.00023561,2]
[367059224,1750639891358,-1446.05,0.00023561,2]
[367059225,1750639891367,-11550.61,0.00023561,2]
[367059226,1750639891378,-2695.85,0.00023561,2]
[367059227,1750639891388,-3020.99,0.00023561,2]
[367059228,1750639891398,-460.0,0.00023561,2]
[367059229,1750639891408,-460.0,0.00023561,2]
[367059230,1750639891418,-565.08,0.00023561,2]
[367059231,1750639891427,-460.0,0.00023561,2]
[367059232,1750639891439,-460.0,0.00023561,2]
[367059233,1750639891449,-540.64722024,0.00023561,2]
[367059234,1750639891460,-1507.87,0.00023561,2]
[367059235,1750639891470,-551.39,0.00023561,2]
[367059236,1750639891481,-1730.36,0.00023561,2]
[367059237,1750639891490,-460.0,0.00023561,2]
[367059238,1750639891500,-557.09,0.00023561,2]
[367059239,1750639891510,-587.72,0.00023561,2]
[367059240,1750639891520,-460.0,0.00023561,2]
[367059241,1750639891530,-460.0,0.00023561,2]
[367059242,1750639891539,-500.0,0.00023561,2]
[367059243,1750639891548,-7311.34,0.00023561,2]
[367059244,1750639891557,-1651.15,0.00023561,2]
[367059245,1750639891567,-609.22,0.00023561,2]
[367059246,1750639891577,-1141.66,0.00023561,2]
[367059247,1750639891586,-151.0,0.00023561,7]
[367059248,1750639891596,-460.0,0.00023561,2]
[367059249,1750639891606,-151.0,0.00023561,7]
[367059250,1750639891616,-3179.76,0.00023561,2]
[367059251,1750639891626,-1659.79,0.00023561,2]
[367059252,1750639891636,-167.573472,0.00023561,7]
[367059253,1750639891645,-460.0,0.00023561,2]
[367059254,1750639891655,-460.0,0.00023561,2]
[367059255,1750639891665,-9731.61,0.00023561,2]
[367059256,1750639891676,-167.57348,0.00023561,7]
[367059257,1750639891685,-460.0,0.00023561,2]
[367059258,1750639891695,-460.0,0.00023561,2]
[367059259,1750639891704,-460.0,0.00023561,2]
[367059260,1750639891714,-150.0609946,0.00023568,2]
[367059261,1750639891723,-500.0,0.00023569,2]
[367059262,1750639891733,-151.0,0.00023571,7]
[367059263,1750639891743,-460.0,0.00023571,2]
[367059264,1750639891753,-232.319353,0.00023571,7]
[367059265,1750639891762,-232.319353,0.00023571,7]
[367059266,1750639891772,-151.0,0.00023581,7]
[367059267,1750639891782,-151.0,0.00023581,7]
[367059268,1750639891792,-151.0,0.00023581,7]
[367059269,1750639891803,-4838.813295,0.00023581,7]
[367059270,1750639891813,-4838.8132865,0.00023581,7]
[367059271,1750639891822,-219.545985,0.00023581,7]
[367059272,1750639891832,-942.448665,0.00023581,7]
[367059273,1750639891841,-942.448665,0.00023581,7]
[367059274,1750639891851,-712.252841,0.00023581,7]
[367059275,1750639891862,-712.252841,0.00023581,7]
[367059276,1750639891871,-348.039404,0.00023581,7]
[367059277,1750639891881,-348.039405,0.00023581,7]
[367059278,1750639891890,-648.424325,0.00023581,7]
[367059279,1750639891899,-648.424316,0.00023581,7]
[367059280,1750639891909,-177.3077519,0.00023587,2]
[367059281,1750639891919,-159.1115641,0.00023587,2]
[367059282,1750639891928,-153.0,0.00023587,2]
[367059283,1750639891937,-153.0,0.00023587,2]
[367059284,1750639891947,-574.6497757,0.00023587,2]
[367059285,1750639891956,-177.3077519,0.00023587,2]
[367059286,1750639891965,-153.0,0.00023587,2]
[367059287,1750639891975,-153.0,0.00023587,2]
[367059288,1750639891984,-817.2437599,0.00023587,2]
[367059289,1750639891994,-159.1115641,0.00023587,2]
[367059290,1750639892003,-153.0,0.00023587,2]
[367059291,1750639892012,-153.0,0.00023587,2]
[367059292,1750639892022,-153.0,0.00023587,2]
[367059293,1750639892031,-153.0,0.00023587,2]
[367059294,1750639892040,-574.6497757,0.00023589,2]
[367059295,1750639892050,-159.1115641,0.00023589,2]
[367059296,1750639892060,-500.0,0.00023609,2]
[367059297,1750639892069,-2000.0,0.00023616,2]
[367059298,1750639892079,-2000.0,0.00023616,2]
[367059299,1750639892089,-2000.0,0.00023616,2]
[367059300,1750639892219,-2000.0,0.00023616,2]
[367059301,1750639892229,-2000.0,0.00023616,2]
[367059302,1750639892239,-2000.0,0.00023616,2]
[367059303,1750639892248,-1128.28870092,0.00023616,2]
[367059304,1750639892258,-698.71272137,0.00023616,2]
[367059305,1750639892268,-2000.0,0.00023616,2]
[367059306,1750639892278,-1059.17432975,0.00023621,2]
[367059307,1750639892288,-1000.0,0.00023621,2]
[367059308,1750639892297,-344.94862943,0.00023621,2]
[367059309,1750639892306,-2612.949413,0.00023621,7]
[367059310,1750639892315,-2612.949413,0.00023621,7]
[367059311,1750639892324,-2692.38240704,0.00023624,9]
[367059312,1750639892334,-500.0,0.00023691,2]
[367059313,1750639892344,-271.5,0.00023704,5]
[367059314,1750639892353,-3718.21682444,0.00023713,2]
[367059315,1750639892364,-500.0,0.00023732,2]
[367059316,1750639892374,-395.623205,0.00023746,7]
[367059317,1750639892384,-395.623205,0.00023746,7]
[367059318,1750639892393,-278.488901,0.00023746,7]
[367059319,1750639892402,-278.488901,0.00023746,7]
[367059320,1750639892411,-1396.493576,0.00023762,2]
[367059321,1750639892421,-1396.493576,0.00023762,2]
[367059322,1750639892430,-151.0,0.00023763,7]
[367059323,1750639892440,-211.792391,0.00023763,7]
[367059324,1750639892450,-211.792387,0.00023763,7]
[367059325,1750639892459,-151.0,0.00023763,7]
[367059326,1750639892468,-277.695013,0.00023763,7]
[367059327,1750639892478,-277.695013,0.00023763,7]
[367059328,1750639892487,-409.312054,0.00023763,7]
[367059329,1750639892497,-409.312054,0.00023763,7]
[367059330,1750639892506,-151.0,0.00023763,7]
[367059331,1750639892515,-265.706403,0.00023773,7]
[367059332,1750639892524,-151.0,0.00023773,7]
[367059333,1750639892534,-151.0,0.00023774,7]
[367059334,1750639892543,-2692.38240704,0.00023797,9]
[367059335,1750639892552,-151.0,0.000238,7]
[367059336,1750639892561,-151.0,0.000238,7]
[367059337,1750639892571,-151.0,0.000238,7]
[367059338,1750639892580,-500.0,0.000238,15]
[367059339,1750639892590,-420.0,0.00023816,2]
[367059340,1750639892599,-600.65169996,0.00023816,2]
[367059341,1750639892609,-1500.0,0.00023816,2]
[367059342,1750639892619,-2000.0,0.00023816,2]
[367059343,1750639892629,-1666.75359688,0.00023816,2]
[367059344,1750639892638,-1500.0,0.00023816,2]
[367059345,1750639892648,-2000.0,0.00023816,2]
[367059346,1750639892658,-2400.0,0.00023816,2]
[367059347,1750639892669,-279.12600258,0.00023816,2]
[367059348,1750639892680,-2000.0,0.00023816,2]
[367059349,1750639892690,-2000.0,0.00023816,2]
[367059350,1750639892699,-151.0,0.00023835,7]
[367059351,1750639892709,-460.0,0.00023835,2]
[367059352,1750639892719,-460.0,0.00023835,2]
[367059353,1750639892728,-460.0,0.00023835,2]
[367059354,1750639892738,-601.92215963,0.00023835,2]
[367059355,1750639892747,-460.0,0.00023835,2]
[367059356,1750639892756,-1000.0,0.00023835,2]
[367059357,1750639892766,-1396.493576,0.00023835,2]
[367059358,1750639892777,-1396.493576,0.00023835,2]
[367059359,1750639892786,-460.0,0.00023835,2]
[367059360,1750639892795,-521.58,0.00023835,2]
[367059361,1750639892804,-724.19,0.00023835,2]
[367059362,1750639892814,-1261.66,0.00023835,2]
[367059363,1750639892823,-644.37,0.00023835,2]
[367059364,1750639892833,-802.53,0.00023835,2]
[367059365,1750639892843,-623.73,0.00023835,2]
[367059366,1750639892853,-460.0,0.00023835,2]
[367059367,1750639892863,-460.0,0.00023835,2]
[367059368,1750639892872,-460.0,0.00023835,2]
[367059369,1750639892882,-460.0,0.00023835,2]
[367059370,1750639892891,-460.0,0.00023835,2]
[367059371,1750639892900,-1354.6,0.00023835,2]
[367059372,1750639892910,-460.0,0.00023835,2]
[367059373,1750639892920,-460.0,0.00023835,2]
[367059374,1750639892929,-460.0,0.00023835,2]
[367059375,1750639892938,-460.0,0.00023835,2]
[367059376,1750639892947,-460.0,0.00023835,2]
[367059377,1750639892957,-460.0,0.00023835,2]
[367059378,1750639892966,-460.0,0.00023835,2]
[367059379,1750639892976,-460.0,0.00023835,2]
[367059380,1750639892985,-460.0,0.00023835,2]
[367059381,1750639892995,-460.0,0.00023835,2]
[367059382,1750639893005,-460.0,0.00023835,2]
[367059383,1750639893015,-151.0,0.00023835,7]
[367059384,1750639893024,-1019.2,0.00023835,2]
[367059385,1750639893035,-460.0,0.00023835,2]
[367059386,1750639893046,-460.0,0.00023835,2]
[367059387,1750639893055,-460.0,0.00023835,2]
[367059388,1750639893065,-460.0,0.00023835,2]
[367059389,1750639893075,-460.0,0.00023835,2]
[367059390,1750639893085,-460.0,0.00023835,2]
[367059391,1750639893095,-570.77605911,0.00023835,2]
[367059392,1750639893116,-277.695013,0.00023835,7]
[367059393,1750639893137,-494.89,0.00023835,2]
[367059394,1750639893157,-277.695013,0.00023835,7]
[367059395,1750639893179,-460.0,0.00023835,2]
[367059396,1750639893202,-460.0,0.00023835,2]
[367059397,1750639893220,-266.62724688,0.00023835,2]
[367059398,1750639893242,-460.0,0.00023835,2]
[367059399,1750639893259,-460.0,0.00023835,2]
[367059400,1750639893279,-652.66,0.00023835,2]
[367059401,1750639893299,-460.0,0.00023835,2]
[367059402,1750639893320,-460.0,0.00023835,2]
[367059403,1750639893333,-624.55,0.00023835,2]
[367059404,1750639893355,-200.0,0.00023835,2]
[367059405,1750639893371,-395.623205,0.00023835,7]
[367059406,1750639893389,-460.0,0.00023835,2]
[367059407,1750639893404,-395.623205,0.00023835,7]
[367059408,1750639893419,-969.13,0.00023835,2]
[367059409,1750639893435,-489.31,0.00023835,2]
[367059410,1750639893451,-460.0,0.00023835,2]
[367059411,1750639893466,-460.0,0.00023835,2]
[367059412,1750639893481,-460.0,0.00023835,2]
[367059413,1750639893497,-409.312054,0.00023835,7]
[367059414,1750639893512,-409.312054,0.00023835,7]
[367059415,1750639893529,-1215.8,0.00023835,2]
[367059416,1750639893544,-481.76,0.00023835,2]
[367059417,1750639893559,-521.74,0.00023835,2]
[367059418,1750639893574,-733.87,0.00023835,2]
[367059419,1750639893591,-695.13,0.00023835,2]
[367059420,1750639893608,-460.0,0.00023835,2]
[367059421,1750639893631,-460.0,0.00023835,2]
[367059422,1750639893648,-493.8,0.00023835,2]
[367059423,1750639893663,-460.0,0.00023835,2]
[367059424,1750639893680,-460.0,0.00023835,2]
[367059425,1750639893697,-600.99871865,0.00023835,2]
[367059426,1750639893715,-569.86212833,0.00023835,2]
[367059427,1750639893731,-717.48,0.00023835,2]
[367059428,1750639893747,-460.0,0.00023835,2]
[367059429,1750639893763,-575.94,0.00023835,2]
[367059430,1750639893781,-942.448665,0.00023835,7]
[367059431,1750639893797,-606.39726898,0.00023835,2]
[367059432,1750639893813,-942.448665,0.00023835,7]
[367059433,1750639893829,-151.0,0.00023835,7]
[367059434,1750639893844,-460.0,0.00023835,2]
[367059435,1750639893859,-575.61,0.00023835,2]
[367059436,1750639893879,-192.1507791,0.00023835,2]
[367059437,1750639893895,-460.0,0.00023835,2]
[367059438,1750639893912,-460.0,0.00023835,2]
[367059439,1750639893927,-460.0,0.00023835,2]
[367059440,1750639893942,-580.28,0.00023835,2]
[367059441,1750639893957,-971.13,0.00023835,2]
[367059442,1750639893972,-460.0,0.00023835,2]
[367059443,1750639893981,-460.0,0.00023835,2]
[367059444,1750639893991,-460.0,0.00023835,2]
[367059445,1750639894001,-542.21,0.00023835,2]
[367059446,1750639894010,-462.93,0.00023835,2]
[367059447,1750639894020,-460.0,0.00023835,2]
[367059448,1750639894029,-460.0,0.00023835,2]
[367059449,1750639894039,-151.0,0.00023835,7]
[367059450,1750639894048,-460.0,0.00023835,2]
[367059451,1750639894058,-500.0,0.00023835,2]
[367059452,1750639894068,-460.0,0.00023835,2]
[367059453,1750639894077,-647.88,0.00023835,2]
[367059454,1750639894086,-652.67,0.00023835,2]
[367059455,1750639894096,-975.0,0.00023835,2]
[367059456,1750639894106,-963.32,0.00023835,2]
[367059457,1750639894116,-278.488901,0.00023835,7]
[367059458,1750639894125,-460.0,0.00023835,2]
[367059459,1750639894135,-1615.31,0.00023835,2]
[367059460,1750639894144,-278.488901,0.00023835,7]
[367059461,1750639894154,-460.0,0.00023835,2]
[367059462,1750639894163,-460.0,0.00023835,2]
[367059463,1750639894174,-712.252841,0.00023835,7]
[367059464,1750639894187,-460.0,0.00023835,2]
[367059465,1750639894197,-1308.56,0.00023835,2]
[367059466,1750639894207,-460.0,0.00023835,2]
[367059467,1750639894218,-712.252841,0.00023835,7]
[367059468,1750639894227,-460.0,0.00023835,2]
[367059469,1750639894237,-1149.69,0.00023835,2]
[367059470,1750639894246,-460.0,0.00023835,2]
[367059471,1750639894255,-460.0,0.00023835,2]
[367059472,1750639894266,-460.0,0.00023835,2]
[367059473,1750639894276,-460.0,0.00023835,2]
[367059474,1750639894286,-1162.67,0.00023835,2]
[367059475,1750639894295,-733.82,0.00023835,2]
[367059476,1750639894305,-589.76,0.00023835,2]
[367059477,1750639894314,-703.04,0.00023835,2]
[367059478,1750639894323,-460.0,0.00023835,2]
[367059479,1750639894333,-460.0,0.00023835,2]
[367059480,1750639894342,-1388.78,0.00023835,2]
[367059481,1750639894351,-1207.94,0.00023835,2]
[367059482,1750639894361,-795.21,0.00023835,2]
[367059483,1750639894665,-460.0,0.00023835,2]
[367059484,1750639894763,-460.0,0.00023835,2]
[367059485,1750639894782,-825.13,0.00023835,2]
[367059486,1750639894800,-460.0,0.00023835,2]
[367059487,1750639894814,-460.0,0.00023835,2]
[367059488,1750639894823,-460.0,0.00023835,2]
[367059489,1750639894832,-2488.34,0.00023835,2]
[367059490,1750639894842,-625.86,0.00023835,2]
[367059491,1750639894850,-460.0,0.00023835,2]
[367059492,1750639894859,-641.12,0.00023835,2]
[367059493,1750639894871,-460.0,0.00023835,2]
[367059494,1750639894879,-958.86,0.00023835,2]
[367059495,1750639894888,-460.0,0.00023835,2]
[367059496,1750639894897,-752.46,0.00023835,2]
[367059497,1750639894906,-614.27,0.00023835,2]
[367059498,1750639894915,-460.0,0.00023835,2]
[367059499,1750639894924,-1769.62,0.00023835,2]
[367059500,1750639894934,-460.0,0.00023835,2]
[367059501,1750639894943,-1144.09,0.00023835,2]
[367059502,1750639894952,-460.0,0.00023835,2]
[367059503,1750639894961,-232.319353,0.00023835,7]
[367059504,1750639894970,-960.82,0.00023835,2]
[367059505,1750639894979,-1002.89,0.00023835,2]
[367059506,1750639894988,-614.93,0.00023835,2]
[367059507,1750639894997,-575.42,0.00023835,2]
[367059508,1750639895006,-232.31936,0.00023835,7]
[367059509,1750639895016,-460.0,0.00023835,2]
[367059510,1750639895025,-2612.949413,0.00023835,7]
[367059511,1750639895034,-616.99,0.00023835,2]
[367059512,1750639895043,-698.5,0.00023835,2]
[367059513,1750639895052,-2612.949408,0.00023835,7]
[367059514,1750639895061,-460.0,0.00023835,2]
[367059515,1750639895071,-460.0,0.00023835,2]
[367059516,1750639895080,-859.09,0.00023835,2]
[367059517,1750639895089,-971.67,0.00023835,2]
[367059518,1750639895098,-1083.29,0.00023835,2]
[367059519,1750639895108,-4023.46,0.00023835,2]
[367059520,1750639895119,-872.55,0.00023835,2]
[367059521,1750639895129,-460.0,0.00023835,2]
[367059522,1750639895138,-784.68,0.00023835,2]
[367059523,1750639895147,-466.66980465,0.00023835,2]
[367059524,1750639895157,-2728.64,0.00023835,2]
[367059525,1750639895166,-1549.07,0.00023835,2]
[367059526,1750639895175,-1138.65,0.00023835,2]
[367059527,1750639895184,-460.0,0.00023835,2]
[367059528,1750639895196,-940.89,0.00023835,2]
[367059529,1750639895205,-271.74069443,0.00023835,2]
[367059530,1750639895215,-1308.58,0.00023835,2]
[367059531,1750639895224,-460.0,0.00023835,2]
[367059532,1750639895234,-460.0,0.00023835,2]
[367059533,1750639895244,-2673.76,0.00023835,2]
[367059534,1750639895253,-460.0,0.00023835,2]
[367059535,1750639895262,-1110.27,0.00023835,2]
[367059536,1750639895272,-460.0,0.00023835,2]
[367059537,1750639895282,-460.0,0.00023835,2]
[367059538,1750639895291,-460.0,0.00023835,2]
[367059539,1750639895300,-461.6,0.00023835,2]
[367059540,1750639895309,-460.0,0.00023835,2]
[367059541,1750639895318,-509.75,0.00023835,2]
[367059542,1750639895327,-460.0,0.00023835,2]
[367059543,1750639895336,-549.75803748,0.00023835,2]
[367059544,1750639895345,-460.0,0.00023835,2]
[367059545,1750639895355,-1734.3,0.00023835,2]
[367059546,1750639895364,-350.97544623,0.00023835,2]
[367059547,1750639895587,-109.02455377,0.00023835,2]
[367059548,1750639895597,-924.7,0.00023835,2]
[367059549,1750639895606,-460.0,0.00023835,2]
[367059550,1750639895617,-460.0,0.00023835,2]
[367059551,1750639895626,-543.61,0.00023835,2]
[367059552,1750639895636,-2467.5,0.00023835,2]
[367059553,1750639895645,-460.0,0.00023835,2]
[367059554,1750639895654,-391.38884458,0.00023835,2]
[367059555,1750639895663,-460.0,0.00023835,2]
[367059556,1750639895673,-1504.35,0.00023835,2]
[367059557,1750639895683,-1578.29,0.00023835,2]
[367059558,1750639895692,-1497.69,0.00023835,2]
[367059559,1750639895701,-460.0,0.00023835,2]
[367059560,1750639895710,-460.0,0.00023835,2]
[367059561,1750639895719,-460.0,0.00023835,2]
[367059562,1750639895729,-662.51,0.00023835,2]
[367059563,1750639895739,-460.0,0.00023835,2]
[367059564,1750639895748,-460.0,0.00023835,2]
[367059565,1750639895758,-606.05,0.00023835,2]
[367059566,1750639895768,-287.2664217,0.00023835,2]
[367059567,1750639895777,-520.94,0.00023835,2]
[367059568,1750639895786,-460.0,0.00023835,2]
[367059569,1750639895796,-1603.67,0.00023835,2]
[367059570,1750639895805,-972.63,0.00023835,2]
[367059571,1750639895814,-151.0,0.00023835,7]
[367059572,1750639895824,-460.0,0.00023835,2]
[367059573,1750639895833,-527.86,0.00023835,2]
[367059574,1750639895842,-1405.52,0.00023835,2]
[367059575,1750639895851,-1891.75,0.00023835,2]
[367059576,1750639895860,-460.0,0.00023835,2]
[367059577,1750639895871,-614.19,0.00023835,2]
[367059578,1750639895881,-605.14,0.00023835,2]
[367059579,1750639895890,-460.0,0.00023835,2]
[367059580,1750639895900,-460.0,0.00023835,2]
[367059581,1750639895909,-460.0,0.00023835,2]
[367059582,1750639895918,-668.56,0.00023835,2]
[367059583,1750639895927,-460.0,0.00023835,2]
[367059584,1750639895937,-699.73,0.00023835,2]
[367059585,1750639895946,-460.0,0.00023835,2]
[367059586,1750639895955,-460.0,0.00023835,2]
[367059587,1750639895964,-1360.06,0.00023835,2]
[367059588,1750639895974,-460.0,0.00023835,2]
[367059589,1750639895983,-529.72,0.00023835,2]
[367059590,1750639895992,-460.0,0.00023835,2]
[367059591,1750639896001,-832.9,0.00023835,2]
[367059592,1750639896010,-460.0,0.00023835,2]
[367059593,1750639896019,-1781.3,0.00023835,2]
[367059594,1750639896029,-197.827342,0.00023835,7]
[367059595,1750639896039,-197.827342,0.00023835,7]
[367059596,1750639896048,-460.0,0.00023835,2]
[367059597,1750639896058,-425.45391066,0.00023835,2]
[367059598,1750639896067,-197.827342,0.00023835,7]
[367059599,1750639896078,-197.827337,0.00023835,7]
[367059600,1750639896087,-2036.4,0.00023835,2]
[367059601,1750639896096,-1000.81,0.00023835,2]
[367059602,1750639896106,-557.76,0.00023835,2]
[367059603,1750639896116,-460.0,0.00023835,2]
[367059604,1750639896125,-460.0,0.00023835,2]
[367059605,1750639896135,-759.38,0.00023835,2]
[367059606,1750639896144,-460.98,0.00023835,2]
[367059607,1750639896154,-251.91820104,0.00023835,2]
[367059608,1750639896163,-460.0,0.00023835,2]
[367059609,1750639896173,-304.83556375,0.00023835,2]
[367059610,1750639896189,-746.12,0.00023835,2]
[367059611,1750639896198,-595.78,0.00023835,2]
[367059612,1750639896207,-2294.47,0.00023835,2]
[367059613,1750639896217,-567.97,0.00023835,2]
[367059614,1750639896227,-2664.66,0.00023835,2]
[367059615,1750639896237,-477.65,0.00023835,2]
[367059616,1750639896247,-2395.58,0.00023835,2]
[367059617,1750639896259,-460.0,0.00023835,2]
[367059618,1750639896269,-5283.56,0.00023835,2]
[367059619,1750639896278,-460.0,0.00023835,2]
[367059620,1750639896289,-1183.35,0.00023835,2]
[367059621,1750639896299,-460.0,0.00023835,2]
[367059622,1750639896308,-460.0,0.00023835,2]
[367059623,1750639896318,-460.0,0.00023835,2]
[367059624,1750639896327,-460.0,0.00023835,2]
[367059625,1750639896337,-460.0,0.00023835,2]
[367059626,1750639896346,-592.01,0.00023835,2]
[367059627,1750639896355,-929.93,0.00023835,2]
[367059628,1750639896367,-460.0,0.00023835,2]
[367059629,1750639896376,-932.24,0.00023835,2]
[367059630,1750639896385,-460.0,0.00023835,2]
[367059631,1750639896394,-460.0,0.00023835,2]
[367059632,1750639896403,-460.0,0.00023835,2]
[367059633,1750639896412,-460.0,0.00023835,2]
[367059634,1750639896422,-519.66,0.00023835,2]
[367059635,1750639896431,-460.0,0.00023835,2]
[367059636,1750639896440,-460.0,0.00023835,2]
[367059637,1750639896449,-1906.75,0.00023835,2]
[367059638,1750639896458,-476.17,0.00023835,2]
[367059639,1750639896467,-460.0,0.00023835,2]
[367059640,1750639896476,-460.0,0.00023835,2]
[367059641,1750639896485,-1055.15,0.00023835,2]
[367059642,1750639896494,-330.59102367,0.00023835,2]
[367059643,1750639896503,-515.59,0.00023835,2]
[367059644,1750639896512,-460.0,0.00023835,2]
[367059645,1750639896521,-460.0,0.00023835,2]
[367059646,1750639896530,-6574.74,0.00023835,2]
[367059647,1750639896539,-506.07,0.00023835,2]
[367059648,1750639896548,-460.0,0.00023835,2]
[367059649,1750639896558,-6431.01,0.00023835,2]
[367059650,1750639896567,-487.62,0.00023835,2]
[367059651,1750639896576,-460.0,0.00023835,2]
[367059652,1750639896585,-460.0,0.00023835,2]
[367059653,1750639896594,-460.0,0.00023835,2]
[367059654,1750639896604,-635.2,0.00023835,2]
[367059655,1750639896613,-796.06,0.00023835,2]
[367059656,1750639896624,-963.72,0.00023835,2]
[367059657,1750639896633,-6867.71,0.00023835,2]
[367059658,1750639896642,-433.61608554,0.00023835,2]
[367059659,1750639896652,-1290.7582156,0.00023835,2]
[367059660,1750639896963,-460.0,0.00021917,2]
[367059661,1750639896974,-37.22591716,0.00021917,2]
[367059662,1750639900762,-422.77408284,0.00021917,2]
[367059663,1750639900771,-206.43823243,0.00021917,2]
[367059664,1750639900781,-460.0,0.00021917,2]
[367059665,1750639900791,-460.0,0.00021917,2]
[367059666,1750639900800,-200.0,0.00021917,10]
[367059667,1750639900811,-460.0,0.00022191,2]
[367059668,1750639900820,-460.0,0.00022191,2]
[367059669,1750639900829,-460.0,0.00022465,2]
[367059670,1750639900839,-460.0,0.00022739,2]
[367059671,1750639900849,-460.0,0.00023013,2]
[367059672,1750639900858,-460.0,0.00023287,2]
[367059673,1750639900868,-374.17,0.00023561,2]
[367059674,1750639900879,-65.6417844,0.00023835,2]
[367059675,1750639900888,-460.0,0.00023835,2]
[367059676,1750639900898,-460.0,0.00023835,2]
[367059677,1750639900907,-460.0,0.00023835,2]
[367059678,1750639900917,-472.73,0.00023835,2]
[367059679,1750639900928,-460.0,0.00023835,2]
[367059680,1750639900938,-7527.08,0.00023835,2]
[367059681,1750639900947,-556.76,0.00023835,2]
[367059682,1750639900957,-947.43,0.00023835,2]
[367059683,1750639900967,-460.0,0.00023835,2]
[367059684,1750639900976,-185.03374968,0.00023835,2]
[367059685,1750639900988,-1009.95,0.00023835,2]
[367059686,1750639901011,-200.0,0.00021917,10]
[367059687,1750639901020,-203.0,0.00021917,2]
[367059688,1750640029492,232.619806,0.00013699,2]
[367059690,1750640039171,1293.81327287,0.00019516,2]
[367059691,1750640502463,150.0,0.00021795,30]
[367059692,1750640502868,150.0,0.00023777,30]
[367059693,1750640577040,150.0,0.00022102,30]
[367059694,1750640577312,150.0,0.00024111,30]
[367059695,1750640612398,220.74,0.00025,90]
[367059696,1750640649241,150.0,0.00022071,30]
[367059697,1750640836311,-232.619806,0.00020187,2]
[367059698,1750640836332,-180.7445937,0.00020717,2]
[367059699,1750640836353,-1129.98864695,0.00020864,2]
[367059703,1750640946167,-70.01135305,0.00020864,2]
[367059704,1750640946187,-300.0,0.00020864,2]
[367059705,1750640946421,-300.0,0.00020864,2]
[367059706,1750640946443,-24900.0,0.00020865,2]
[367059707,1750640946465,-666.0,0.00020894,2]
[367059708,1750640946485,-178.43106,0.00020907,2]
[367059709,1750640948106,-404.404,0.0002171,2]
[367059710,1750640948126,-1000.0,0.000218,2]
[367059711,1750640948147,-283.63442611,0.00021807,2]
[367059712,1750640948168,-412.21387194,0.00021817,2]
[367059713,1750640948339,150.0,0.000189,2]
[367059714,1750640956197,174.356706,0.00021081,2]
[367059715,1750640957928,227.3630767,0.00020914,2]
[367059716,1750640969126,-160.0,0.00021891,2]
[367059717,1750640969152,-2098.55433258,0.000219,6]
[367059718,1750640969172,-42.2553402,0.00021907,3]
[367059720,1750640973453,201.99717284,0.00013699,2]
[367059721,1750640973475,15.53791116,0.00013699,2]
[367059722,1750640973668,217.535084,0.00020187,2]
[367059723,1750640990134,150.0,0.00022256,30]
[367059773,1750641032710,-62351.11384239,0.00021806,2]
[367059775,1750641032722,-19407.56383085,0.00021806,2]